bitfinex-derivatives/quotes_SOLF0:USTF0_20240924
["timestamp","ask_amount","ask_price","bid_price","bid_amount"]
[1727177538457,12.8688,146.26,146.23,12.8694]
[1727177538458,3.4188,146.26,146.23,12.8694]
[1727177539559,3.4186,146.27,146.24,3.419]
[1727177540362,3.4183,146.28,146.25,3.4189]
[1727177540560,3.4183,146.28,146.25,12.8689]
[1727177540762,9.45,146.3,146.25,9.45]
[1727177541168,3.4181,146.29,146.26,3.4186]
[1727177542563,3.4181,146.29,146.26,12.8686]
[1727177543457,2.7931,146.32,146.28,9.45]
[1727177543758,2.7931,146.32,146.29,9.45]
[1727177543759,1.437,146.32,146.29,9.45]
[1727177544366,3.4175,146.31,146.28,9.45]
[1727177545569,3.4175,146.31,146.28,12.8681]
[1727177545866,3.47217046,146.31,146.27,9.45]
[1727177546472,3.4181,146.29,146.27,12.8684]
[1727177549873,1.437,146.32,146.27,12.8684]
[1727177550177,1.437,146.32,146.28,12.8682]
[1727177551565,3.4176,146.31,146.28,12.8682]
[1727177552977,3.4179,146.3,146.28,3.4182]
[1727177553174,3.4179,146.3,146.27,12.8684]
[1727177554179,12.8676,146.31,146.28,3.4181]
[1727177554379,3.4176,146.31,146.28,9.45]
[1727177555881,3.4176,146.31,146.29,3.4179]
[1727177560587,3.4176,146.31,146.28,3.4181]
[1727177560777,3.4176,146.31,146.28,12.8681]
[1727177563488,3.4176,146.31,146.29,3.418]
[1727177564884,3.4176,146.31,146.28,12.8681]
[1727177574398,1.437,146.32,146.27,12.8684]
[1727177576196,3.418,146.3,146.27,12.8684]
[1727177576395,10.887,146.32,146.27,12.8684]
[1727177577600,9.45,146.3,146.25,3.4188]
[1727177577797,3.4186,146.27,146.24,9.45]
[1727177579599,1.437,146.32,146.25,9.45]
[1727177579805,9.45,146.31,146.26,9.45]
[1727177580203,12.88752311,146.31,146.26,9.45]
[1727177580408,9.45,146.3,146.22,2.7667]
[1727177580905,9.45,146.3,146.24,9.45]
[1727177581204,3.4186,146.27,146.24,9.45]
[1727177581705,3.4181,146.29,146.25,9.45]
[1727177582905,9.45,146.29,146.22,2.7667]
[1727177583106,9.45,146.29,146.24,9.45]
[1727177584312,3.3471199,146.31,146.18,1.2575]
[1727177584313,9.45,146.26,146.18,1.2575]
[1727177584512,9.45,146.25,146.19,9.45]
[1727177584700,3.4194,146.24,146.2,3.4199]
[1727177585104,3.4194,146.24,146.2,9.45]
[1727177585400,3.4194,146.24,146.21,3.4197]
[1727177586006,12.869,146.25,146.22,3.4196]
[1727177586413,3.419,146.25,146.22,3.4196]
[1727177587722,3.4193,146.24,146.21,12.8698]
[1727177588019,3.4193,146.24,146.21,9.45]
[1727177588819,3.4193,146.24,146.22,3.4196]
[1727177589127,3.4193,146.24,146.2,9.45]
[1727177589718,3.4193,146.24,146.21,3.4197]
[1727177594028,3.4194,146.23,146.21,3.4197]
[1727177596231,9.45,146.25,146.2,3.42]
[1727177596933,3.4195,146.23,146.2,3.42]
[1727177597827,3.4195,146.23,146.21,3.4198]
[1727177603737,1.4069,146.27,146.22,9.45]
[1727177604039,1.4069,146.27,146.24,9.45]
[1727177604230,60.79986338,146.28,146.25,3.4189]
[1727177604231,59.38566338,146.28,146.25,3.4189]
[1727177604639,2.6701,146.32,146.27,9.45]
[1727177604935,3.4179,146.3,146.27,12.8683]
[1727177605535,3.4176,146.31,146.28,3.4181]
[1727177605835,3.4176,146.31,146.28,12.8681]
[1727177606138,2.6701,146.32,146.28,12.8681]
[1727177606635,3.4179,146.3,146.28,9.45]
[1727177606830,3.4179,146.3,146.27,12.8684]
[1727177607939,3.4179,146.3,146.28,3.4182]
[1727177608542,3.4179,146.3,146.28,12.8682]
[1727177609939,9.45,146.31,146.28,12.8682]
[1727177610159,1.3077,146.32,146.29,9.45]
[1727177610741,4.7251,146.32,146.29,12.8679]
[1727177615743,3.4175,146.31,146.29,12.8679]
[1727177616845,2.8063,146.36,146.3,9.45]
[1727177617043,2.8063,146.36,146.32,9.45]
[1727177617044,1.397,146.36,146.32,9.45]
[1727177617452,4.78583949,146.36,146.32,9.45]
[1727177617753,3.417,146.34,146.32,9.45]
[1727177618442,3.4167,146.35,146.32,12.8673]
[1727177618743,1.397,146.36,146.33,9.45]
[1727177618938,15.02387027,146.41,146.34,12.8667]
[1727177619147,3.4163,146.37,146.34,12.8667]
[1727177620347,3.416,146.38,146.35,12.8666]
[1727177620848,3.38199097,146.39,146.35,9.45]
[1727177621752,3.4162,146.37,146.35,9.45]
[1727177629255,3.4164,146.36,146.35,9.45]
[1727177630659,3.4162,146.37,146.35,9.45]
[1727177632758,3.4162,146.37,146.34,3.4167]
[1727177632951,3.4162,146.37,146.35,9.45]
[1727177633153,3.4164,146.36,146.35,9.45]
[1727177633855,3.4162,146.37,146.35,9.45]
[1727177640369,3.4162,146.37,146.34,3.4167]
[1727177640663,3.4164,146.36,146.33,3.4169]
[1727177640867,9.45,146.38,146.33,12.8669]
[1727177642473,9.45,146.37,146.32,3.4172]
[1727177642763,9.45,146.37,146.32,12.8672]
[1727177643164,12.79585995,146.37,146.32,12.8672]
[1727177643570,9.45,146.38,146.33,12.867]
[1727177643960,9.45,146.38,146.34,9.45]
[1727177644165,12.82833738,146.38,146.34,9.45]
[1727177644569,1.3627,146.4,146.34,12.8667]
[1727177644875,10.8127,146.4,146.34,12.8667]
[1727177645167,3.4163,146.37,146.34,12.8667]
[1727177645567,3.4164,146.36,146.34,12.8667]
[1727177647772,1.3627,146.4,146.35,9.45]
[1727177648072,1.3627,146.4,146.37,9.45]
[1727177648767,3.4159,146.38,146.37,9.45]
[1727177648971,3.4159,146.38,146.36,12.8662]
[1727177649173,3.4159,146.38,146.35,9.45]
[1727177649374,3.4159,146.38,146.35,12.8665]
[1727177652278,3.4159,146.38,146.36,3.4163]
[1727177653369,3.4155,146.4,146.38,3.4157]
[1727177653573,3.4155,146.4,146.39,9.45]
[1727177654265,9.45,146.42,146.37,12.866]
[1727177654876,3.4158,146.39,146.37,9.45]
[1727177655769,3.4158,146.39,146.37,12.866]
[1727177657067,2.6714,146.46,146.38,9.45]
[1727177657272,12.1214,146.46,146.41,9.45]
[1727177657875,3.4149,146.43,146.41,9.45]
[1727177658071,2.6714,146.46,146.42,9.45]
[1727177658476,3.4144,146.45,146.42,12.8648]
[1727177658674,9.45,146.49,146.44,9.45]
[1727177659076,1.4262,146.51,146.45,9.45]
[1727177659375,10.8762,146.51,146.45,9.45]
[1727177659769,1.4262,146.51,146.47,9.45]
[1727177660272,1.4262,146.51,146.4,92.70185869]
[1727177660273,10.8762,146.51,146.45,12.8641]
[1727177660678,3.4135,146.49,146.45,12.8641]
[1727177660980,3.4135,146.49,146.46,3.414]
[1727177662377,3.4132,146.5,146.47,12.8637]
[1727177663280,3.4132,146.5,146.4,92.70185869]
[1727177663281,3.4127,146.52,146.49,12.8633]
[1727177663483,12.88763024,146.54,146.49,9.45]
[1727177663982,12.88763024,146.54,146.43,3.4772571]
[1727177663983,1.4086,146.55,146.5,9.45]
[1727177664285,10.8586,146.55,146.49,9.45]
[1727177664581,3.4128,146.52,146.49,9.45]
[1727177664777,3.4128,146.52,146.48,3.4134]
[1727177664973,14.22300744,146.55,146.49,9.45]
[1727177665378,3.4128,146.52,146.49,9.45]
[1727177666380,3.4128,146.52,146.51,9.45]
[1727177666582,3.4124,146.53,146.51,9.45]
[1727177666972,10.8586,146.55,146.51,9.45]
[1727177667180,14.35485122,146.55,146.51,9.45]
[1727177667480,10.8586,146.55,146.51,9.45]
[1727177667983,3.4126,146.53,146.51,9.45]
[1727177669378,3.4126,146.53,146.49,3.4132]
[1727177669577,3.4126,146.53,146.5,9.45]
[1727177671383,3.4126,146.53,146.51,9.45]
[1727177672078,10.7571,146.58,146.52,9.45]
[1727177672476,3.4121,146.55,146.52,9.45]
[1727177673096,3.4121,146.55,146.52,12.8626]
[1727177673497,3.4121,146.55,146.54,9.45]
[1727177673698,2.6281,146.59,146.54,9.45]
[1727177673895,2.6281,146.59,146.55,9.45]
[1727177674406,3.4114,146.58,146.55,9.45]
[1727177674604,1.314,146.59,146.55,9.45]
[1727177674797,3.4113,146.58,146.55,9.45]
[1727177674999,1.314,146.59,146.55,9.45]
[1727177675699,3.4113,146.58,146.55,9.45]
[1727177675902,1.314,146.59,146.55,9.45]
[1727177676301,3.4113,146.58,146.55,9.45]
[1727177676801,3.4115,146.57,146.55,9.45]
[1727177680304,9.45,146.58,146.53,9.45]
[1727177680803,3.4121,146.55,146.53,9.45]
[1727177681603,3.4118,146.56,146.53,12.8624]
[1727177682001,1.314,146.59,146.54,9.45]
[1727177682202,3.4116,146.57,146.54,12.8621]
[1727177682909,1.314,146.59,146.56,9.45]
[1727177683208,3.4109,146.6,146.57,12.8614]
[1727177683408,3.4109,146.6,146.59,9.45]
[1727177684210,3.411,146.59,146.56,3.4116]
[1727177684510,59.24757276,146.63,146.58,9.45]
[1727177684707,3.4109,146.6,146.58,9.45]
[1727177686917,3.4109,146.6,146.54,2.7865]
[1727177686918,3.40545996,146.61,146.54,2.7865]
[1727177687117,9.45,146.62,146.57,9.45]
[1727177687308,3.4112,146.59,146.57,9.45]
[1727177687609,68.69757276,146.63,146.57,9.45]
[1727177688518,68.69757276,146.63,146.58,9.45]
[1727177689604,68.69757276,146.63,146.54,2.7865]
[1727177689815,9.45,146.62,146.57,9.45]
[1727177690109,3.4219516,146.61,146.57,9.45]
[1727177690912,3.4113,146.58,146.57,9.45]
[1727177695019,12.88276645,146.61,146.54,2.7865]
[1727177695212,9.45,146.61,146.56,9.45]
[1727177695711,3.4115,146.57,146.56,9.45]
[1727177697412,3.4111,146.59,146.56,12.8617]
[1727177697615,2.6171,146.62,146.59,9.45]
[1727177698114,3.4108,146.6,146.59,9.45]
[1727177698417,2.6171,146.62,146.57,9.45]
[1727177698418,3.4112,146.58,146.57,9.45]
[1727177700416,3.4111,146.59,146.57,9.45]
[1727177700813,1.3121,146.62,146.57,12.8614]
[1727177701014,3.411,146.59,146.57,12.8614]
[1727177701613,3.411,146.59,146.57,9.45]
[1727177703417,3.4112,146.58,146.57,9.45]
[1727177704411,3.4111,146.59,146.57,9.45]
[1727177705116,13.45930136,146.58,146.57,0.97179415]
[1727177706519,13.45930136,146.58,146.57,4.38329415]
[1727177706918,3.4109,146.6,146.57,9.45]
[1727177707122,3.4109,146.6,146.59,9.45]
[1727177707322,3.4109,146.6,146.59,5.72988208]
[1727177707323,16.53889853,146.6,146.59,5.72988208]
[1727177708219,3.4109,146.6,146.59,5.72988208]
[1727177708426,16.53889853,146.6,146.59,5.72988208]
[1727177708723,3.4111,146.59,146.58,9.45]
[1727177709319,16.53909853,146.59,146.58,9.45]
[1727177709724,3.4111,146.59,146.58,9.45]
[1727177710217,16.53909853,146.59,146.58,9.45]
[1727177710421,3.4111,146.59,146.58,9.45]
[1727177710915,16.53909853,146.59,146.58,9.45]
[1727177711324,3.4111,146.59,146.58,9.45]
[1727177711720,16.53909853,146.59,146.58,9.45]
[1727177712223,3.4111,146.59,146.58,9.45]
[1727177716119,1.3121,146.62,146.54,1.4261]
[1727177716120,9.45,146.6,146.54,1.4261]
[1727177716318,9.45,146.6,146.54,10.8761]
[1727177716518,3.4116,146.57,146.54,14.2881]
[1727177716718,9.45,146.6,146.54,10.8761]
[1727177717527,3.4116,146.57,146.54,14.2883]
[1727177718723,3.4113,146.58,146.56,9.45]
[1727177718933,12.1163,146.62,146.57,9.45]
[1727177719524,3.4111,146.59,146.57,9.45]
[1727177720134,3.4109,146.6,146.58,9.45]
[1727177726031,1.4352,146.67,146.58,9.45]
[1727177726226,2.7642,146.67,146.61,9.45]
[1727177727234,2.7642,146.67,146.64,9.45]
[1727177728830,3.4096,146.65,146.64,9.45]
[1727177729423,12.2142,146.67,146.61,9.45]
[1727177730426,1.329,146.67,146.62,9.45]
[1727177730730,1.329,146.67,146.64,9.45]
[1727177730930,224.0,146.85,146.65,92.54153762]
[1727177731235,9.45,146.68,146.62,9.45]
[1727177731435,1.4206,146.72,146.64,9.45]
[1727177731637,9.45,146.7,146.64,9.45]
[1727177731932,3.4094,146.66,146.64,9.45]
[1727177733231,1.4206,146.72,146.61,1.4367]
[1727177733232,6.8129,146.79,146.65,9.45]
[1727177733431,9.45,146.74,146.69,9.45]
[1727177733636,9.45,146.73,146.67,9.45]
[1727177733846,12.1951,146.73,146.67,9.45]
[1727177734037,3.4086,146.7,146.67,9.45]
[1727177735639,9.45,146.7,146.62,1.3626]
[1727177735941,12.92681422,146.7,146.65,9.45]
[1727177736444,3.4088,146.69,146.67,9.45]
[1727177737438,1.3648,146.72,146.67,9.45]
[1727177737740,1.3648,146.72,146.68,9.45]
[1727177738134,3.4083,146.71,146.68,9.45]
[1727177738939,2.7451,146.73,146.7,9.45]
[1727177739146,1.4018,146.73,146.7,9.45]
[1727177739643,10.8453,146.77,146.72,9.45]
[1727177739944,3.4073,146.75,146.73,9.45]
[1727177740442,3.4075,146.74,146.72,9.45]
[1727177742436,3.4075,146.74,146.7,3.4084]
[1727177742640,3.4075,146.74,146.72,9.45]
[1727177745847,3.4078,146.73,146.7,3.4084]
[1727177746049,10.8453,146.77,146.71,12.8582]
[1727177746239,10.8453,146.77,146.73,9.45]
[1727177746447,1.3742,146.78,146.75,9.45]
[1727177747751,3.407,146.77,146.75,9.45]
[1727177749753,3.407,146.77,146.76,9.45]
[1727177750146,1.4387,146.82,146.76,9.45]
[1727177750348,9.45,146.81,146.75,9.45]
[1727177750745,3.4068,146.78,146.75,9.45]
[1727177750951,9.45,146.79,146.74,9.45]
[1727177751466,3.4069,146.77,146.74,9.45]
[1727177751950,3.4069,146.77,146.75,9.45]
[1727177752453,3.4067,146.78,146.75,9.45]
[1727177754554,3.4067,146.78,146.75,12.8572]
[1727177755556,9.45,146.78,146.67,84.4854]
[1727177755751,9.45,146.77,146.72,9.45]
[1727177756254,3.4073,146.75,146.74,9.45]
[1727177760153,3.4073,146.75,146.72,9.45]
[1727177760359,9.45,146.78,146.67,2.6654]
[1727177760360,9.45,146.76,146.67,2.6654]
[1727177760560,4.84748101,146.82,146.6,92.57016479]
[1727177760561,9.45,146.72,146.6,92.57016479]
[1727177760766,9.45,146.7,146.65,9.45]
[1727177760964,3.44950265,146.71,146.65,12.8595]
[1727177760965,3.409,146.68,146.65,12.8595]
[1727177761365,12.86539981,146.71,146.65,9.45]
[1727177761564,9.45,146.69,146.65,9.45]
[1727177762163,3.409,146.68,146.66,9.45]
[1727177762358,2.7042,146.76,146.67,9.45]
[1727177762359,3.38266108,146.74,146.67,9.45]
[1727177762562,9.45,146.72,146.67,9.45]
[1727177762759,3.4084,146.71,146.67,12.8591]
[1727177763059,9.45,146.72,146.67,12.8591]
[1727177763260,12.8581,146.72,146.67,12.8591]
[1727177764257,9.45,146.72,146.67,9.45]
[1727177764466,9.45,146.74,146.68,9.45]
[1727177764964,9.45,146.74,146.69,3.4085]
[1727177765761,2.7042,146.76,146.68,9.45]
[1727177765961,2.7042,146.76,146.71,9.45]
[1727177766266,12.1542,146.76,146.71,9.45]
[1727177766669,2.7042,146.76,146.71,9.45]
[1727177767066,6.1115,146.76,146.71,12.8581]
[1727177767367,1.3671,146.77,146.73,9.45]
[1727177767561,2.734,146.81,146.73,12.8576]
[1727177767870,9.45,146.79,146.73,9.45]
[1727177768069,12.78662961,146.79,146.73,9.45]
[1727177768263,3.4067,146.78,146.73,9.45]
[1727177768673,3.4067,146.78,146.73,12.8576]
[1727177769170,3.4068,146.77,146.73,12.8576]
[1727177769970,3.4067,146.78,146.74,3.4075]
[1727177771072,3.4067,146.78,146.75,9.45]
[1727177771271,3.4064,146.79,146.75,9.45]
[1727177771970,3.4067,146.78,146.74,9.45]
[1727177772274,9.45,146.79,146.74,9.45]
[1727177772773,9.45,146.76,146.65,6.8188]
[1727177772962,9.45,146.76,146.72,3.4079]
[1727177773166,12.8572,146.76,146.72,3.4079]
[1727177773568,12.8572,146.76,146.73,3.4077]
[1727177773763,12.8569,146.77,146.73,3.4077]
[1727177773975,12.8569,146.77,146.72,9.45]
[1727177774470,9.45,146.77,146.74,3.4075]
[1727177775367,12.8567,146.78,146.74,3.4075]
[1727177779777,3.4067,146.78,146.74,3.4075]
[1727177781183,9.45,146.77,146.65,6.8188]
[1727177781368,9.45,146.77,146.72,9.45]
[1727177781566,3.4072,146.76,146.72,12.8578]
[1727177781875,9.45,146.75,146.65,6.8188]
[1727177782077,3.4076,146.74,146.71,3.4082]
[1727177782267,9.45,146.75,146.71,9.45]
[1727177782468,9.45,146.77,146.71,9.45]
[1727177782878,3.4074,146.75,146.72,3.4079]
[1727177783172,9.45,146.77,146.71,9.45]
[1727177783568,9.45,146.77,146.71,12.8581]
[1727177784182,3.4075,146.75,146.71,12.8581]
[1727177785276,3.4076,146.74,146.71,12.8581]
[1727177786778,9.45,146.76,146.72,12.8579]
[1727177787374,3.4074,146.75,146.72,12.8579]
[1727177791280,3.4062,146.8,146.76,3.4069]
[1727177791478,9.45,146.77,146.68,1.2492]
[1727177791675,9.45,146.76,146.71,9.45]
[1727177792186,9.45,146.76,146.72,3.4079]
[1727177792783,12.8572,146.76,146.72,3.4079]
[1727177794086,12.8572,146.76,146.72,12.8579]
[1727177794286,3.4072,146.76,146.72,12.8579]
[1727177795087,3.4072,146.76,146.72,3.4079]
[1727177795281,3.4073,146.75,146.72,12.8579]
[1727177795893,3.4073,146.75,146.72,9.45]
[1727177796388,9.45,146.78,146.68,1.2492]
[1727177796599,7.55753551,146.81,146.72,9.45]
[1727177796600,9.45,146.77,146.72,9.45]
[1727177796795,12.857,146.77,146.73,3.4077]
[1727177797101,3.407,146.77,146.73,12.8577]
[1727177797602,3.4071,146.76,146.73,9.45]
[1727177798899,3.4071,146.76,146.73,12.8577]
[1727177802292,3.4071,146.76,146.73,3.4077]
[1727177803595,12.8571,146.76,146.72,9.45]
[1727177803799,3.4075,146.74,146.71,3.4082]
[1727177804098,7.55753551,146.81,146.71,9.45]
[1727177804292,7.55753551,146.81,146.72,3.4078]
[1727177804293,9.45,146.76,146.72,3.4078]
[1727177805097,12.8572,146.76,146.72,3.4078]
[1727177805499,9.45,146.76,146.72,3.4078]
[1727177805703,3.4073,146.75,146.72,3.4078]
[1727177809404,3.4075,146.74,146.72,3.4078]
[1727177818201,3.4074,146.75,146.72,3.4078]
[1727177819105,3.4074,146.75,146.73,3.4077]
[1727177824617,9.45,146.77,146.71,9.45]
[1727177825114,3.4071,146.76,146.74,3.4075]
[1727177826107,4.1508,146.81,146.74,9.45]
[1727177826410,13.6008,146.81,146.76,9.45]
[1727177826614,4.8228,146.81,146.78,9.45]
[1727177826811,3.406,146.81,146.78,9.45]
[1727177827416,62.57787703,146.82,146.79,3.4062]
[1727177827808,9.45,146.85,146.8,9.45]
[1727177828007,3.4051,146.85,146.82,3.4056]
[1727177828211,3.4051,146.85,146.81,9.45]
[1727177828212,9.45,146.86,146.81,9.45]
[1727177828413,9.45,146.84,146.78,9.45]
[1727177828608,9.45,146.81,146.73,7.28403722]
[1727177828815,9.45,146.81,146.75,9.45]
[1727177829513,9.45,146.79,146.74,9.45]
[1727177830219,3.4066,146.78,146.75,3.4071]
[1727177831221,9.45,146.78,146.72,92.50008129]
[1727177831412,9.45,146.76,146.72,92.50008129]
[1727177831617,3.38307198,146.81,146.72,92.50008129]
[1727177831618,9.45,146.75,146.72,92.50008129]
[1727177832014,2.801,146.82,146.72,92.50008129]
[1727177832209,9.45,146.75,146.72,92.50008129]
[1727177832517,12.8574,146.75,146.72,92.50008129]
[1727177833020,12.8571,146.76,146.72,92.50008129]
[1727177833609,12.8571,146.76,146.73,3.4077]
[1727177833814,3.4071,146.76,146.73,12.8577]
[1727177834118,3.4074,146.75,146.72,92.50008129]
[1727177834724,3.4074,146.75,146.72,95.90788129]
[1727177836818,9.45,146.76,146.72,9.45]
[1727177838228,3.4074,146.75,146.72,12.8578]
[1727177838926,3.4074,146.75,146.73,3.4077]
[1727177839530,3.4074,146.75,146.72,12.8579]
[1727177842225,9.45,146.76,146.72,3.4079]
[1727177842428,3.4076,146.74,146.71,3.4081]
[1727177844128,3.4076,146.74,146.72,9.45]
[1727177844535,3.4076,146.74,146.72,12.8579]
[1727177844721,59.17726041,146.8,146.73,9.45]
[1727177844923,9.45,146.79,146.74,9.45]
[1727177845234,3.4069,146.77,146.75,3.4072]
[1727177846022,3.4069,146.77,146.74,3.4074]
[1727177846422,9.45,146.76,146.72,3.4078]
[1727177846629,9.45,146.75,146.72,3.4078]
[1727177847226,12.8573,146.75,146.73,3.4077]
[1727177847428,12.8573,146.75,146.7,9.45]
[1727177847732,12.8573,146.75,146.73,3.4077]
[1727177848026,3.4073,146.75,146.73,3.4077]
[1727177850127,59.17726041,146.8,146.75,3.4071]
[1727177850328,59.17726041,146.8,146.73,9.45]
[1727177850329,9.45,146.78,146.73,9.45]
[1727177850535,9.45,146.78,146.74,9.45]
[1727177851825,3.4069,146.77,146.75,3.4072]
[1727177852537,3.4069,146.77,146.74,3.4073]
[1727177853331,3.4071,146.76,146.73,12.8576]
[1727177854233,3.4069,146.77,146.73,9.45]
[1727177854535,3.4069,146.77,146.74,9.45]
[1727177855133,3.4067,146.78,146.74,9.45]
[1727177855337,3.4067,146.78,146.76,9.45]
[1727177856238,3.4064,146.79,146.76,9.45]
[1727177857141,3.4064,146.79,146.76,3.4068]
[1727177859335,3.4066,146.78,146.76,3.4068]
[1727177862442,3.4066,146.78,146.75,12.8572]
[1727177866039,3.4066,146.78,146.76,3.407]
[1727177876147,9.45,146.78,146.69,92.51600032]
[1727177876344,9.45,146.76,146.71,9.45]
[1727177877345,3.4072,146.76,146.72,9.45]
[1727177878745,3.4072,146.76,146.74,3.4073]
[1727177880151,9.45,146.75,146.7,9.45]
[1727177880354,9.45,146.74,146.7,9.45]
[1727177880954,9.45,146.73,146.69,92.51600032]
[1727177881148,2.7171,146.75,146.64,9.45]
[1727177881339,9.45,146.69,146.64,9.45]
[1727177881541,9.45,146.69,146.63,2.763]
[1727177881739,9.45,146.69,146.63,12.213]
[1727177882047,9.45,146.68,146.64,3.4096]
[1727177882847,12.859,146.68,146.65,3.4096]
[1727177883252,3.409,146.68,146.65,3.4096]
[1727177883550,3.409,146.68,146.65,12.8596]
[1727177883952,1.305,146.7,146.66,9.45]
[1727177884148,2.7171,146.75,146.69,9.45]
[1727177884149,9.45,146.74,146.69,9.45]
[1727177884348,12.1671,146.75,146.7,9.45]
[1727177884543,3.4077,146.74,146.71,3.4081]
[1727177885254,3.4078,146.73,146.71,3.4081]
[1727177885446,9.45,146.74,146.68,9.45]
[1727177885847,3.4081,146.72,146.69,3.4086]
[1727177887949,3.4081,146.72,146.63,2.763]
[1727177887950,3.4078,146.73,146.7,12.8583]
[1727177888156,9.45,146.74,146.7,9.45]
[1727177888654,3.4079,146.73,146.7,9.45]
[1727177889954,3.4079,146.73,146.7,12.8584]
[1727177892251,3.4079,146.73,146.71,3.4082]
[1727177892458,3.4076,146.74,146.71,12.8582]
[1727177894048,3.4076,146.74,146.71,9.45]
[1727177894252,10.8083,146.78,146.73,9.45]
[1727177894464,10.8083,146.78,146.74,9.45]
[1727177894758,3.4069,146.77,146.74,12.8575]
[1727177895057,10.8083,146.78,146.74,9.45]
[1727177895561,3.4072,146.76,146.73,12.8576]
[1727177896655,9.45,146.76,146.71,9.45]
[1727177897259,3.4076,146.74,146.71,12.8581]
[1727177897460,9.45,146.75,146.69,9.45]
[1727177898357,3.4079,146.73,146.7,3.4084]
[1727177899255,9.45,146.73,146.69,3.4086]
[1727177899463,9.45,146.73,146.57,92.51600032]
[1727177899464,9.45,146.71,146.64,4.73533819]
[1727177899762,9.45,146.71,146.66,9.45]
[1727177900163,12.8584,146.71,146.68,3.4088]
[1727177900365,3.4084,146.71,146.67,9.45]
[1727177900864,3.4084,146.71,146.68,3.4089]
[1727177901054,3.4084,146.71,146.68,9.45]
[1727177901861,3.4084,146.71,146.69,3.4086]
[1727177902953,3.408,146.72,146.69,12.8586]
[1727177903665,3.4078,146.73,146.7,3.4083]
[1727177903864,12.8578,146.73,146.7,3.4083]
[1727177904257,3.4078,146.73,146.7,3.4083]
[1727177906365,3.408,146.72,146.69,3.4086]
[1727177910262,3.4082,146.71,146.69,3.4086]
[1727177910463,3.4082,146.71,146.68,12.8589]
[1727177911372,3.4082,146.71,146.69,3.4087]
[1727177915676,3.4079,146.73,146.7,3.4083]
[1727177916168,3.4079,146.73,146.69,9.45]
[1727177917175,3.4079,146.73,146.7,9.45]
[1727177918774,3.4079,146.73,146.7,12.8583]
[1727177919165,3.4076,146.74,146.7,9.45]
[1727177919565,9.45,146.76,146.71,3.4081]
[1727177919764,3.4074,146.75,146.7,9.45]
[1727177919978,3.4074,146.75,146.65,11.28041845]
[1727177920167,3.4074,146.75,146.64,1.25]
[1727177920168,3.4074,146.75,146.72,9.45]
[1727177920672,3.4074,146.75,146.72,12.8578]
[1727177922973,3.4074,146.75,146.72,3.4078]
[1727177923168,9.45,146.75,146.7,9.45]
[1727177923772,9.45,146.75,146.7,12.8583]
[1727177924267,3.4079,146.73,146.7,12.8583]
[1727177924473,3.4079,146.73,146.7,3.4083]
[1727177924968,3.4082,146.71,146.68,3.4087]